bitfinex-derivatives/quotes_BTCF0:USTF0_20220103
["timestamp","ask_amount","ask_price","bid_price","bid_amount"]
[1641191016431,1.44415351,47034.0,47029.0,0.55858228]
[1641191017134,1.44415351,47034.0,47030.0,0.36158228]
[1641191018534,1.44415351,47034.0,47030.0,0.55758228]
[1641191019735,1.44415351,47035.0,47030.0,0.36158228]
[1641191020438,1.44415351,47035.0,47030.0,0.55758228]
[1641191021738,1.44415351,47035.0,47030.0,0.36158228]
[1641191022540,1.44415351,47035.0,47031.0,0.36158228]
[1641191024542,1.44415351,47035.0,47031.0,0.55758228]
[1641191025842,1.44415351,47035.0,47031.0,0.36158228]
[1641191026042,0.02126944,47036.0,47029.0,0.60263713]
[1641191026242,0.02126944,47036.0,47027.0,0.36158228]
[1641191026445,0.02126944,47036.0,47031.0,0.196]
[1641191027843,0.02126944,47036.0,47027.0,0.36158228]
[1641191028446,0.02126944,47036.0,47027.0,0.55758228]
[1641191029746,0.02126944,47036.0,47027.0,0.36158228]
[1641191029947,0.08443944,47036.0,47027.0,0.36158228]
[1641191030447,0.08443944,47036.0,47027.0,0.55758228]
[1641191031846,0.08443944,47036.0,47027.0,0.36158228]
[1641191032046,0.08443944,47036.0,47026.0,0.50191795]
[1641191032446,0.08443944,47036.0,47027.0,0.196]
[1641191033749,0.08443944,47036.0,47026.0,0.50191795]
[1641191034547,0.08443944,47036.0,47026.0,0.69791795]
[1641191034949,0.08443944,47036.0,47026.0,0.55758228]
[1641191035348,0.08443944,47036.0,47027.0,0.36158228]
[1641191036450,0.08443944,47036.0,47027.0,0.55758228]
[1641191038457,0.08443944,47036.0,47027.0,0.75358228]
[1641191039555,0.08443944,47036.0,47027.0,0.392]
[1641191039755,0.08443944,47036.0,47026.0,0.50191795]
[1641191040455,0.08443944,47036.0,47026.0,0.69891795]
[1641191041257,0.08443944,47036.0,47026.0,0.33733567]
[1641191041757,0.08443944,47036.0,47026.0,0.14033567]
[1641191041956,0.08443944,47036.0,47025.0,0.36158228]
[1641191042358,0.08443944,47036.0,47026.0,0.14033567]
[1641191042558,0.08443944,47036.0,47026.0,0.33633567]
[1641191042957,0.83982165,47028.0,47026.0,0.33633567]
[1641191043759,0.83982165,47028.0,47026.0,0.14033567]
[1641191044559,0.83982165,47028.0,47026.0,0.33733567]
[1641191045962,0.83982165,47028.0,47026.0,0.14033567]
[1641191046366,0.83982165,47028.0,47026.0,0.33733567]
[1641191047470,1.44415351,47032.0,47027.0,0.84369198]
[1641191048171,1.44415351,47032.0,47030.0,0.36165864]
[1641191050472,1.44415351,47032.0,47030.0,0.55665864]
[1641191051772,1.44415351,47032.0,47030.0,0.36165864]
[1641191052373,1.44415351,47032.0,47030.0,0.55665864]
[1641191053685,1.44415351,47032.0,47030.0,0.36165864]
[1641191054385,1.44415351,47032.0,47030.0,0.55665864]
[1641191055786,1.44415351,47032.0,47030.0,0.36165864]
[1641191056388,1.44415351,47032.0,47030.0,0.55765864]
[1641191057786,1.44415351,47032.0,47030.0,0.36165864]
[1641191057987,1.44415351,47032.0,47029.0,0.36165864]
[1641191058387,1.44415351,47032.0,47030.0,0.196]
[1641191059792,1.44415351,47032.0,47029.0,0.36165864]
[1641191059990,1.44415351,47032.0,47030.0,0.36165864]
[1641191061292,1.44415351,47034.0,47029.0,0.7997644]
[1641191061495,1.44415351,47034.0,47029.0,0.197]
[1641191061893,1.44415351,47034.0,47028.0,0.36165864]
[1641191062394,1.44415351,47034.0,47028.0,0.55865864]
[1641191062994,1.53456706,47033.0,47028.0,0.55865864]
[1641191063893,1.53456706,47033.0,47028.0,0.36165864]
[1641191064295,0.09041355,47032.0,47028.0,0.36165864]
[1641191064494,0.09041355,47032.0,47028.0,0.55765864]
[1641191065696,0.09041355,47032.0,47028.0,0.36165864]
[1641191066397,0.09041355,47032.0,47028.0,0.55765864]
[1641191067403,0.09041355,47032.0,47028.0,0.196]
[1641191067708,0.09041355,47032.0,47027.0,0.36165864]
[1641191068402,0.09041355,47032.0,47027.0,0.55765864]
[1641191068802,0.09041355,47032.0,47028.0,0.36165864]
[1641191069704,1.53456706,47032.0,47027.0,0.55765864]
[1641191070006,1.53456706,47032.0,47027.0,0.36165864]
[1641191070304,1.53456706,47031.0,47027.0,0.36165864]
[1641191070505,1.53456706,47031.0,47029.0,0.36165864]
[1641191071106,0.09041355,47030.0,47029.0,0.36165864]
[1641191072407,0.09041355,47030.0,47029.0,0.55765864]
[1641191073709,0.09041355,47030.0,47029.0,0.36165864]
[1641191074508,0.09041355,47030.0,47029.0,0.55765864]
[1641191075810,0.09041355,47030.0,47029.0,0.36165864]
[1641191076412,0.09041355,47030.0,47029.0,0.55765864]
[1641191078415,0.09041355,47030.0,47029.0,0.75365864]
[1641191078715,1.44415351,47031.0,47029.0,0.75365864]
[1641191079815,1.44415351,47031.0,47029.0,0.36165864]
[1641191080515,1.44415351,47031.0,47029.0,0.55765864]
[1641191081827,1.44415351,47031.0,47029.0,0.36165864]
[1641191082528,1.44415351,47031.0,47029.0,0.55765864]
[1641191083929,1.44415351,47032.0,47030.0,0.36165864]
[1641191084529,1.44415351,47031.0,47030.0,0.195]
[1641191085928,1.44415351,47031.0,47028.0,0.36165864]
[1641191086129,1.44415351,47031.0,47029.0,0.36165864]
[1641191086829,1.44415351,47031.0,47028.0,0.55765864]
[1641191087835,1.44415351,47031.0,47028.0,0.36165864]
[1641191088435,1.44415351,47031.0,47028.0,0.55765864]
[1641191089736,1.44415351,47031.0,47028.0,0.36165864]
[1641191090643,1.44415351,47031.0,47028.0,0.55765864]
[1641191091943,1.44415351,47031.0,47028.0,0.36165864]
[1641191092344,1.44415351,47030.0,47028.0,0.36165864]
[1641191092543,1.44415351,47030.0,47028.0,0.55765864]
[1641191093247,1.44415351,47030.0,47028.0,0.196]
[1641191093946,1.44415351,47030.0,47027.0,0.36165864]
[1641191094146,1.44415351,47031.0,47028.0,0.36165864]
[1641191095950,0.20127402,47029.0,47027.0,0.36165864]
[1641191096346,0.10282102,47028.0,47027.0,0.36165864]
[1641191096547,0.63537923,47028.0,47027.0,0.52365864]
[1641191097046,0.63537923,47028.0,47027.0,0.162]
[1641191097447,0.7757149,47028.0,47027.0,0.162]
[1641191097845,0.7757149,47028.0,47019.0,0.36165864]
[1641191098249,0.18,47022.0,47019.0,0.36165864]
[1641191098647,0.18,47022.0,47020.0,0.202]
[1641191099549,1.43979895,47021.0,47020.0,0.202]
[1641191099951,1.43979895,47021.0,47020.0,0.02]
[1641191100451,1.4610757,47021.0,47020.0,0.02]
[1641191100652,0.02127675,47021.0,47020.0,0.212]
[1641191101752,0.02127675,47021.0,47020.0,0.02]
[1641191102554,0.02127675,47021.0,47020.0,0.213]
[1641191103955,0.02127675,47021.0,47020.0,0.02]
[1641191104556,0.02127675,47021.0,47020.0,0.213]
[1641191105057,0.20127675,47021.0,47020.0,0.213]
[1641191105755,0.02127675,47021.0,47020.0,0.02]
[1641191106557,0.02127675,47021.0,47020.0,0.213]
[1641191107959,0.02127675,47021.0,47020.0,0.02]
[1641191108160,0.11170892,47021.0,47020.0,0.02]
[1641191108560,0.11170892,47021.0,47020.0,0.213]
[1641191109759,0.11170892,47021.0,47020.0,0.02]
[1641191110561,0.11170892,47021.0,47020.0,0.214]
[1641191111862,0.11170892,47021.0,47020.0,0.02]
[1641191112562,0.11170892,47021.0,47020.0,0.214]
[1641191113965,0.11170892,47021.0,47020.0,0.02]
[1641191114564,0.11170892,47021.0,47020.0,0.214]
[1641191115865,0.11170892,47021.0,47020.0,0.02]
[1641191116467,0.11170892,47021.0,47020.0,0.214]
[1641191117870,0.11170892,47021.0,47020.0,0.02]
[1641191118673,0.11170892,47021.0,47020.0,0.214]
[1641191120572,0.11170892,47021.0,47020.0,0.211]
[1641191121873,0.11170892,47021.0,47020.0,0.02]
[1641191122574,0.11170892,47021.0,47020.0,0.211]
[1641191123376,0.02127675,47021.0,47020.0,0.211]
[1641191123976,0.02127675,47021.0,47020.0,0.02]
[1641191124477,0.02127675,47021.0,47020.0,0.211]
[1641191125880,0.02127675,47021.0,47020.0,0.02]
[1641191126682,0.02127675,47021.0,47020.0,0.211]
[1641191127982,0.02127675,47021.0,47020.0,0.02]
[1641191128598,0.02127675,47021.0,47020.0,0.211]
[1641191130004,0.02127675,47021.0,47020.0,0.02]
[1641191130703,0.21027675,47021.0,47020.0,0.02]
[1641191131309,0.39027675,47021.0,47020.0,0.02]
[1641191131506,0.39027675,47021.0,47015.0,0.36165864]
[1641191131705,0.18,47016.0,47015.0,0.36165864]
[1641191132305,0.3926,47016.0,47013.0,0.6027644]
[1641191132607,0.3926,47016.0,47015.0,0.185]
[1641191132608,0.5276,47016.0,47015.0,0.185]
[1641191133406,0.5276,47016.0,47011.0,0.6027644]
[1641191133407,0.54888026,47016.0,47011.0,0.6027644]
[1641191133605,0.18,47012.0,47009.0,0.84369198]
[1641191133806,0.42543824,47011.0,47009.0,0.84369198]
[1641191134008,0.42543824,47011.0,47009.0,0.60294402]
[1641191134507,0.61243824,47011.0,47009.0,0.60294402]
[1641191134705,0.09240583,47010.0,47009.0,0.60294402]
[1641191135208,0.09240583,47010.0,47008.0,0.84369198]
[1641191135410,0.18,47009.0,47008.0,0.84369198]
[1641191135806,0.18,47009.0,47006.0,1.20201814]
[1641191136007,0.20128466,47009.0,47002.0,0.14033567]
[1641191136206,0.18,47005.0,47002.0,0.14033567]
[1641191137008,1.434069,47003.0,47002.0,0.14033567]
[1641191137911,1.434069,47003.0,46998.0,0.14033567]
[1641191138510,1.618069,47003.0,46998.0,0.14033567]
[1641191138708,0.2126,47002.0,46998.0,0.14033567]
[1641191139309,0.06505506,47001.0,46998.0,0.14033567]
[1641191139909,1.434069,47000.0,46998.0,0.14033567]
[1641191140513,1.618069,47000.0,46998.0,0.14033567]
[1641191141111,0.2126,46999.0,46998.0,0.14033567]
[1641191141509,0.23388669,46999.0,46998.0,0.14033567]
[1641191141911,1.66795569,46999.0,46998.0,0.14033567]
[1641191142510,1.66795569,46999.0,46991.0,1.20201814]
[1641191142511,1.85995569,46999.0,46991.0,1.20201814]
[1641191142810,0.02128815,46995.0,46991.0,1.20201814]
[1641191143811,0.02128815,46995.0,46986.0,0.14033567]
[1641191143812,0.09600814,46994.0,46986.0,0.14033567]
[1641191144011,1.30030881,46994.0,46981.0,0.14033567]
[1641191144211,1.72590367,46994.0,46981.0,0.14033567]
[1641191144412,0.42563438,46989.0,46977.0,1.99873567]
[1641191144613,0.02129166,46987.0,46977.0,1.99873567]
[1641191145013,0.324399,46986.0,46977.0,0.14033567]
[1641191146116,0.4256807,46984.0,46977.0,0.14033567]
[1641191147021,1.064271,46983.0,46977.0,0.14033567]
[1641191147920,1.276871,46983.0,46977.0,0.14033567]
[1641191148122,1.29816459,46983.0,46977.0,0.14033567]
[1641191148322,1.29816459,46983.0,46972.0,0.14033567]
[1641191148721,1.48416459,46983.0,46972.0,0.14033567]
[1641191149321,3.00188511,46976.0,46970.0,0.02]
[1641191149522,3.08882511,46976.0,46970.0,0.02]
[1641191149721,1.064441,46975.0,46970.0,0.02]
[1641191150121,0.14033567,46971.0,46970.0,0.02]
[1641191150721,0.33033567,46971.0,46970.0,0.02]
[1641191152022,0.14033567,46971.0,46970.0,0.02]
[1641191152723,0.33033567,46971.0,46970.0,0.02]
[1641191153923,0.14033567,46971.0,46970.0,0.02]
[1641191154726,0.33133567,46971.0,46970.0,0.02]
[1641191155935,0.14033567,46971.0,46970.0,0.02]
[1641191156737,0.33133567,46971.0,46970.0,0.02]
[1641191158738,0.52333567,46971.0,46970.0,0.02]
[1641191159436,0.29837373,46970.0,46963.0,0.18]
[1641191159639,0.52333567,46971.0,46963.0,0.18]
[1641191160037,0.14033567,46971.0,46963.0,0.18]
[1641191160235,0.14033567,46971.0,46961.0,0.14033567]
[1641191160437,0.14033567,46971.0,46963.0,0.18]
[1641191160636,0.32533567,46971.0,46963.0,0.18]
[1641191161949,0.14033567,46971.0,46963.0,0.18]
[1641191162750,0.32633567,46971.0,46963.0,0.18]
[1641191164155,0.14033567,46971.0,46963.0,0.18]
[1641191164853,0.32633567,46971.0,46961.0,0.14033567]
[1641191165958,0.35669365,46962.0,46961.0,0.32033567]
[1641191167160,0.35669365,46962.0,46961.0,0.14033567]
[1641191168663,0.52869365,46962.0,46961.0,0.32033567]
[1641191169463,0.172,46962.0,46961.0,0.32033567]
[1641191169662,0.172,46962.0,46961.0,0.14033567]
[1641191169963,0.8325082,46964.0,46961.0,0.14033567]
[1641191170164,0.8325082,46964.0,46962.0,0.18]
[1641191170763,1.0045082,46964.0,46962.0,0.18]
[1641191170963,1.0045082,46964.0,46961.0,0.14033567]
[1641191171165,0.172,46964.0,46956.0,0.14033567]
[1641191171564,0.172,46964.0,46960.0,0.18]
[1641191171766,0.172,46964.0,46956.0,0.14033567]
[1641191172166,0.14033567,46964.0,46957.0,0.18]
[1641191172366,0.14033567,46964.0,46960.0,0.18]
[1641191172768,0.8325082,46961.0,46960.0,0.18]
[1641191173167,0.92303547,46961.0,46960.0,0.18]
[1641191173367,0.92303547,46961.0,46956.0,0.14033567]
[1641191173566,0.92303547,46961.0,46960.0,0.18]
[1641191174668,1.10803547,46961.0,46960.0,0.18]
[1641191175069,0.22553815,46976.0,46960.0,0.18]
[1641191175070,0.16163228,46976.0,46960.0,0.18]
[1641191175271,0.16163228,46976.0,46969.0,0.18]
[1641191175470,0.16163228,46976.0,46969.0,0.2547]
[1641191176073,0.14033567,46976.0,46969.0,0.2547]
[1641191176672,0.14033567,46976.0,46969.0,0.4487]
[1641191178175,0.14033567,46976.0,46969.0,0.2547]
[1641191178776,0.14033567,46976.0,46969.0,0.4497]
[1641191179976,0.14033567,46976.0,46969.0,0.2547]
[1641191180178,0.14033567,46976.0,46969.0,0.18]
[1641191180796,0.14033567,46976.0,46969.0,0.378]
[1641191181599,0.14033567,46976.0,46969.0,0.198]
[1641191181797,0.16163243,46976.0,46969.0,0.198]
[1641191181997,0.21533567,46971.0,46966.0,0.18]
[1641191182800,0.21533567,46971.0,46966.0,0.373]
[1641191183001,0.21533567,46971.0,46966.0,0.193]
[1641191184202,0.21533567,46971.0,46965.0,0.32033567]
[1641191184803,0.21533567,46971.0,46965.0,0.51833567]
[1641191185601,0.16163243,46976.0,46965.0,0.33833567]
[1641191185802,0.14033567,46976.0,46975.0,0.18]
[1641191186002,0.31275792,46985.0,46975.0,0.24939]
[1641191186302,0.31275792,46985.0,46978.0,0.18]
[1641191186802,1.064248,46984.0,46978.0,0.18]
[1641191187802,1.064248,46984.0,46975.0,0.25339]
[1641191188002,1.064248,46984.0,46978.0,0.18]
[1641191188704,1.434069,46982.0,46979.0,0.36048777]
[1641191190406,0.09049722,46981.0,46979.0,0.36048777]
[1641191190807,0.09049722,46981.0,46979.0,0.54348777]
[1641191191108,1.52456622,46981.0,46979.0,0.183]
[1641191192208,1.52456622,46981.0,46978.0,0.36048777]
[1641191192409,1.52456622,46980.0,46977.0,0.36048777]
[1641191192809,1.52456622,46980.0,46978.0,0.183]
[1641191193009,0.09049722,46979.0,46978.0,0.183]
[1641191193210,0.11179384,46979.0,46972.0,1.20148439]
[1641191193412,0.18,46978.0,46972.0,1.20148439]
[1641191193813,1.35038016,46977.0,46973.0,0.60338569]
[1641191194514,1.35038016,46977.0,46970.0,1.20148439]
[1641191194715,0.14033567,46974.0,46970.0,1.20148439]
[1641191194917,0.14033567,46974.0,46967.0,1.20148439]
[1641191195716,0.09049722,46973.0,46967.0,1.20148439]
[1641191195919,0.09049722,46973.0,46968.0,0.18]
[1641191196618,0.09049722,46973.0,46968.0,1.38148439]
[1641191196815,0.27949722,46973.0,46968.0,1.41748439]
[1641191198117,0.09049722,46972.0,46969.0,1.20148439]
[1641191198718,0.27849722,46972.0,46969.0,1.24948439]
[1641191198916,0.188,46972.0,46969.0,1.24948439]
[1641191199118,0.188,46972.0,46971.0,0.18]
[1641191199417,0.188,46972.0,46969.0,0.048]
[1641191199618,0.188,46972.0,46971.0,0.18]
[1641191200217,0.14033567,46974.0,46971.0,0.18]
[1641191200421,0.14033567,46974.0,46973.0,0.18]
[1641191200818,0.33633567,46974.0,46973.0,0.18]
[1641191201518,1.25689608,46974.0,46973.0,0.18]
[1641191202320,1.06089608,46974.0,46973.0,0.18]
[1641191202921,1.10856041,46974.0,46973.0,0.311]
[1641191204220,0.92056041,46974.0,46973.0,0.18]
[1641191204820,1.10156041,46974.0,46973.0,0.358]
[1641191205019,0.27150207,46974.0,46973.0,0.358]
[1641191205721,0.181,46974.0,46973.0,0.358]
[1641191206020,0.83005834,46976.0,46973.0,0.18]
[1641191206719,1.01205834,46976.0,46975.0,0.18]
[1641191207519,1.10255551,46976.0,46975.0,0.18]
[1641191208219,0.92055551,46976.0,46975.0,0.18]
[1641191208421,0.14033567,46979.0,46975.0,0.18]
[1641191208622,1.42311963,46985.0,46978.0,0.20128767]
[1641191208821,1.42311963,46985.0,46984.0,0.18]
[1641191209021,1.42311963,46985.0,46984.0,0.2434]
[1641191209225,1.42311963,46987.0,46984.0,0.2434]
[1641191209422,1.42311963,46987.0,46984.0,0.0634]
[1641191210423,1.42311963,46987.0,46981.0,0.14033567]
[1641191210822,0.192,46987.0,46981.0,0.14033567]
[1641191211022,0.192,46987.0,46986.0,0.18]
[1641191211521,0.192,46987.0,46986.0,0.25015]
[1641191211721,0.192,46987.0,46986.0,0.07015]
[1641191212321,1.5634553,46992.0,46986.0,0.07015]
[1641191212724,1.7584553,46992.0,46986.0,0.07015]
[1641191213022,1.064078,46991.0,46983.0,0.009794]
[1641191213723,1.064078,46991.0,46986.0,0.18]
[1641191213924,1.064078,46991.0,46983.0,0.009794]
[1641191214322,1.064078,46991.0,46981.0,0.50200216]
[1641191215024,1.260078,46991.0,46981.0,0.50200216]
[1641191215622,1.260078,46991.0,46981.0,0.14033567]
[1641191216121,1.064078,46991.0,46981.0,0.14033567]
[1641191216724,1.261078,46991.0,46981.0,0.14033567]
[1641191217324,1.42311963,46990.0,46981.0,0.14033567]
[1641191217727,1.064158,46989.0,46981.0,0.14033567]
[1641191218931,1.236158,46989.0,46981.0,0.14033567]
[1641191219932,2.65927763,46989.0,46981.0,0.14033567]
[1641191220131,2.48727763,46989.0,46981.0,0.14033567]
[1641191220832,1.42311963,46985.0,46981.0,0.14033567]
[1641191221134,1.42311963,46985.0,46982.0,0.36166649]
[1641191221734,1.42311963,46984.0,46982.0,0.36166649]
[1641191222748,1.50405963,46984.0,46982.0,0.36166649]
[1641191222948,1.64305963,46984.0,46982.0,0.36166649]
[1641191223145,0.21994,46984.0,46981.0,0.14033567]
[1641191224147,0.8323873,46982.0,46981.0,0.14033567]
[1641191224446,0.8323873,46982.0,46981.0,0.32033567]
[1641191224848,0.9853873,46982.0,46981.0,0.14033567]
[1641191225049,1.0635573,46982.0,46981.0,0.14033567]
[1641191225649,0.23117,46982.0,46981.0,0.14033567]
[1641191226052,0.32165935,46982.0,46981.0,0.14033567]
[1641191226255,0.16865935,46982.0,46975.0,0.36166649]
[1641191226851,0.14033567,46980.0,46975.0,0.36166649]
[1641191227155,0.14033567,46980.0,46972.0,0.36166649]
[1641191228355,0.14033567,46980.0,46970.0,2.13016649]
[1641191228356,0.83144945,46976.0,46970.0,2.13016649]
[1641191228559,0.83144945,46976.0,46970.0,0.36166649]
[1641191228956,1.02144945,46976.0,46970.0,0.36166649]
[1641191229159,0.35628739,46973.0,46969.0,0.54166649]
[1641191229758,0.35628739,46973.0,46969.0,0.36166649]
[1641191230158,0.35628739,46972.0,46968.0,0.36166649]
[1641191230358,0.43277739,46972.0,46968.0,0.36166649]
[1641191230761,0.43277739,46972.0,46971.0,0.18]
[1641191230959,0.61177739,46972.0,46968.0,0.36166649]
[1641191231362,0.61177739,46972.0,46967.0,0.61257652]
[1641191231363,0.61177739,46972.0,46969.0,0.36166649]
[1641191231760,0.61177739,46972.0,46971.0,0.18]
[1641191232160,0.43277739,46972.0,46971.0,0.18]
[1641191232862,0.61277739,46972.0,46971.0,0.18]
[1641191234263,0.43277739,46972.0,46971.0,0.18]
[1641191234461,0.35628739,46972.0,46971.0,0.18]
[1641191234762,0.35628739,46973.0,46971.0,0.18]
[1641191234963,0.179,46972.0,46970.0,0.18]
[1641191235662,0.53528739,46972.0,46969.0,0.36166649]
[1641191236163,0.35628739,46972.0,46969.0,0.36166649]
[1641191236563,0.35628739,46972.0,46970.0,0.18]
[1641191236965,0.53528739,46972.0,46969.0,0.36166649]
[1641191237668,0.53528739,46972.0,46970.0,0.18]
[1641191237864,0.179,46972.0,46970.0,0.54166649]
[1641191238266,0.35628739,46973.0,46970.0,0.54166649]
[1641191238764,0.35628739,46973.0,46970.0,0.36166649]
[1641191238965,0.53128739,46973.0,46969.0,0.36166649]
[1641191239166,0.53128739,46973.0,46969.0,0.54166649]
[1641191240266,0.35628739,46973.0,46969.0,0.54166649]
[1641191240467,0.83144945,46975.0,46972.0,0.36166649]
[1641191240866,0.174,46973.0,46972.0,0.36166649]
[1641191242270,0.83144945,46975.0,46972.0,0.36166649]
[1641191242868,0.98844945,46975.0,46972.0,0.36166649]
[1641191244169,0.0904999,46974.0,46972.0,0.36166649]
[1641191244771,0.92194935,46974.0,46973.0,0.36166649]
[1641191245069,1.09294935,46974.0,46973.0,0.36166649]
[1641191245671,0.2614999,46974.0,46973.0,0.36166649]
[1641191245871,0.171,46974.0,46973.0,0.36166649]
[1641191246271,0.0904999,46979.0,46973.0,0.36166649]
[1641191246471,0.0904999,46974.0,46973.0,0.36166649]
[1641191246873,0.2614999,46974.0,46973.0,0.36166649]
[1641191247373,0.171,46974.0,46973.0,0.36166649]
[1641191248272,0.0904999,46974.0,46973.0,0.36166649]
[1641191248872,0.2614999,46974.0,46973.0,0.36166649]
[1641191249573,0.171,46974.0,46973.0,0.36166649]
[1641191250173,0.0904999,46979.0,46973.0,0.36166649]
[1641191250575,0.0904999,46974.0,46973.0,0.36166649]
[1641191251076,0.193,46979.0,46973.0,0.36166649]
[1641191251077,0.2834999,46979.0,46973.0,0.36166649]
[1641191251975,0.0904999,46978.0,46973.0,0.36166649]
[1641191252875,0.2794999,46978.0,46973.0,0.36166649]
[1641191253177,0.189,46978.0,46973.0,0.36166649]
[1641191253675,0.0904999,46977.0,46973.0,0.36166649]
[1641191254879,0.2804999,46977.0,46973.0,0.36166649]
[1641191255980,0.0904999,46976.0,46973.0,0.36166649]
[1641191256880,0.2744999,46976.0,46973.0,0.36166649]
[1641191257280,0.184,46976.0,46973.0,0.36166649]
[1641191258181,0.0904999,46975.0,46973.0,0.36166649]
[1641191258982,0.2754999,46975.0,46973.0,0.36166649]
[1641191259682,0.0904999,46974.0,46973.0,0.36166649]
[1641191260983,0.171,46974.0,46973.0,0.36166649]
[1641191261581,0.171,46974.0,46971.0,0.60278252]
[1641191261882,0.2614999,46974.0,46971.0,0.60278252]
[1641191262082,0.2614999,46974.0,46972.0,0.60278252]
[1641191262281,0.0904999,46974.0,46972.0,0.60278252]
[1641191262787,0.92232823,46973.0,46972.0,0.60278252]
[1641191263487,0.83182833,46973.0,46972.0,0.60278252]
[1641191264086,2.82822911,46974.0,46972.0,0.60278252]
[1641191264287,2.65722911,46974.0,46972.0,0.60278252]
[1641191264486,0.0904999,46973.0,46972.0,0.3618598]
[1641191266988,0.2784999,46973.0,46972.0,0.3618598]
[1641191268087,0.2784999,46973.0,46969.0,0.98412909]
[1641191268290,0.2784999,46973.0,46971.0,0.84379342]
[1641191269090,0.4654999,46973.0,46971.0,0.84379342]
[1641191269490,0.0904999,46972.0,46971.0,0.84379342]
[1641191271109,0.2544999,46972.0,46971.0,0.84379342]
[1641191271708,0.164,46972.0,46971.0,0.84379342]
[1641191272309,0.0904999,46973.0,46971.0,0.84379342]
[1641191272511,0.0904999,46972.0,46971.0,0.84379342]
[1641191273011,0.2354999,46973.0,46971.0,0.84379342]
[1641191274010,0.0904999,46972.0,46971.0,0.84379342]
[1641191275211,0.164,46972.0,46971.0,0.84379342]
[1641191276211,0.2544999,46972.0,46971.0,0.84379342]
[1641191276411,0.0904999,46972.0,46971.0,0.84379342]
[1641191277016,0.2544999,46972.0,46971.0,0.84379342]
[1641191278415,0.0904999,46972.0,46971.0,0.84379342]
[1641191279013,0.2794999,46972.0,46971.0,0.84379342]
[1641191279414,0.2794999,46972.0,46970.0,0.84379342]
[1641191280215,0.0904999,46971.0,46970.0,0.84379342]
[1641191281019,0.2594999,46971.0,46970.0,0.84379342]
[1641191281621,0.169,46971.0,46969.0,0.14033567]
[1641191282020,0.2594999,46971.0,46969.0,0.14033567]
[1641191282223,0.2594999,46971.0,46969.0,1.34182006]
[1641191282920,0.0904999,46970.0,46969.0,1.34182006]
[1641191283319,0.0904999,46970.0,46969.0,1.42311127]
[1641191283522,0.174,46971.0,46969.0,0.22162688]
[1641191283720,0.174,46971.0,46970.0,0.12]
[1641191283919,0.174,46971.0,46970.0,0.24066505]
[1641191284322,0.174,46971.0,46970.0,0.2749839]
[1641191284520,0.14033567,46984.0,46970.0,0.27401957]
[1641191284821,1.42607408,46981.0,46975.0,0.18]
[1641191285421,1.42607408,46981.0,46971.0,0.18]
[1641191286124,1.42607408,46981.0,46974.0,0.14033567]
[1641191286323,1.5165785,46983.0,46978.0,0.36195587]
[1641191287122,1.6865785,46983.0,46978.0,0.36195587]
[1641191287322,0.26050442,46983.0,46979.0,0.37174987]
[1641191287523,0.26050442,46983.0,46982.0,0.18]
[1641191287722,0.26050442,46983.0,46980.0,0.02128659]
[1641191288223,0.26050442,46983.0,46980.0,0.16162226]
[1641191288423,0.09050442,46983.0,46981.0,0.36195587]
[1641191289022,0.09050442,46983.0,46981.0,0.55095587]
[1641191289424,0.09050442,46983.0,46981.0,0.189]
[1641191289623,0.09050442,46985.0,46981.0,1.03356369]
[1641191290324,0.09050442,46985.0,46981.0,0.84456369]
[1641191290724,0.09050442,46988.0,46984.0,0.36189929]
[1641191291126,0.162,46985.0,46984.0,0.36189929]
[1641191291727,0.162,46985.0,46983.0,0.93214844]
[1641191292529,0.09050442,46988.0,46983.0,0.93214844]
[1641191292928,0.09050442,46984.0,46983.0,0.93214844]
[1641191293127,0.09050442,46984.0,46983.0,0.78516549]
[1641191293529,0.23550442,46988.0,46983.0,0.78516549]
[1641191294331,0.09050442,46987.0,46983.0,0.78516549]
[1641191294531,0.09050442,46987.0,46983.0,0.60316549]
[1641191295032,0.23550442,46987.0,46983.0,0.78616549]
[1641191296234,0.09050442,46986.0,46983.0,0.78616549]
[1641191296437,0.09050442,46986.0,46983.0,0.60316549]
[1641191297137,0.23550442,46986.0,46983.0,0.78916549]
[1641191298238,0.09050442,46985.0,46983.0,0.78916549]
[1641191299139,0.18,46984.0,46983.0,0.97616549]
[1641191299339,0.16450442,46985.0,46983.0,0.97616549]
[1641191299939,0.16450442,46985.0,46983.0,0.373]
[1641191300338,0.18,46984.0,46983.0,0.373]
[1641191300539,0.18,46984.0,46980.0,0.74350116]
[1641191300739,0.27050442,46984.0,46980.0,0.74350116]
[1641191300940,0.27050442,46984.0,46980.0,0.14033567]
[1641191301139,0.46150442,46984.0,46980.0,0.14033567]
[1641191301542,1.42200479,46981.0,46975.0,0.60316549]
[1641191301740,1.48258479,46981.0,46975.0,0.60316549]
[1641191301944,0.18,46979.0,46975.0,0.60316549]
[1641191303141,0.374,46979.0,46974.0,0.60316549]
[1641191303541,0.374,46979.0,46972.0,0.84456369]
[1641191303542,0.09050442,46978.0,46972.0,0.60316549]
[1641191304341,0.27050442,46978.0,46972.0,0.60316549]
[1641191305144,0.46650442,46978.0,46972.0,0.60316549]
[1641191305345,0.09050442,46977.0,46972.0,0.60316549]
[1641191306748,1.51250921,46977.0,46972.0,0.60316549]
[1641191307147,1.70850921,46977.0,46972.0,0.60316549]
[1641191308147,1.70850921,46977.0,46974.0,0.36205]
[1641191308547,0.28650442,46977.0,46974.0,0.36205]
[1641191308749,0.09050442,46976.0,46972.0,0.96521549]
[1641191309149,0.09050442,46976.0,46972.0,0.36205]
[1641191310351,0.09050442,46976.0,46971.0,0.36205]
[1641191310756,0.18,46978.0,46971.0,0.36205]
[1641191310757,0.09050442,46977.0,46971.0,0.36205]
[1641191311155,0.179,46976.0,46971.0,0.36205]
[1641191312362,0.09050442,46977.0,46971.0,0.36205]
[1641191312863,0.09050442,46975.0,46971.0,0.36205]
[1641191313263,0.26850442,46977.0,46970.0,0.36205]
[1641191314363,0.09050442,46976.0,46970.0,0.36205]
[1641191315165,0.27050442,46976.0,46970.0,0.36205]
[1641191316466,0.09050442,46975.0,46972.0,0.18]
[1641191316667,0.09050442,46975.0,46972.0,0.27268]
[1641191316864,0.09050442,46975.0,46972.0,0.282474]
[1641191317067,0.27650442,46975.0,46972.0,0.102474]
[1641191317865,0.83090226,46974.0,46972.0,0.94703769]
[1641191318064,0.83090226,46974.0,46973.0,0.60316549]
[1641191318466,0.92140668,46974.0,46972.0,0.94703769]
[1641191319265,0.83090226,46974.0,46972.0,0.94703769]